bitfinex/quotes_ETHUSD_20240924
["timestamp","ask_amount","ask_price","bid_price","bid_amount"]
[1727147111405,3.80517,2628.0,2627.9,0.7913]
[1727147111606,1.59692517,2628.0,2627.9,0.7913]
[1727147112315,1.59692517,2628.1,2627.9,0.7913]
[1727147112515,5.40196517,2628.1,2627.9,0.7913]
[1727147112750,3.83542538,2628.2,2627.9,0.7913]
[1727147112751,3.80517,2628.0,2627.9,0.7913]
[1727147114013,1.59692517,2628.1,2627.9,0.7913]
[1727147114314,5.40196517,2628.1,2627.9,0.7913]
[1727147114515,3.80504,2628.1,2627.9,0.7913]
[1727147115532,5.43235055,2628.2,2627.5,0.8065]
[1727147115533,3.80527,2628.0,2627.5,0.8065]
[1727147115714,3.80527,2628.0,2627.5,1.81253891]
[1727147116420,7.61056,2628.0,2627.5,1.81253891]
[1727147116663,3.80527,2628.0,2627.5,0.8065]
[1727147116950,7.61056,2628.0,2627.5,0.8065]
[1727147117718,3.80542,2627.9,2627.5,0.8065]
[1727147117914,7.61057,2628.0,2627.5,0.8065]
[1727147118119,3.80527,2628.0,2627.5,0.8065]
[1727147118360,5.43231055,2628.2,2627.6,0.461254]
[1727147118723,3.83538538,2628.2,2627.6,4.34309788]
[1727147119263,7.64039538,2628.2,2627.6,0.53735788]
[1727147119761,3.80503,2628.1,2627.6,0.53735788]
[1727147120119,3.80503,2628.1,2627.6,0.461254]
[1727147120322,3.80503,2628.1,2627.7,0.51496579]
[1727147122655,3.80526,2628.0,2627.7,0.51496579]
[1727147122867,3.80526,2628.0,2627.5,0.8065]
[1727147122868,7.61055,2628.0,2627.5,0.8065]
[1727147123171,3.80532,2627.9,2627.5,0.8065]
[1727147123757,7.61055,2628.0,2627.5,0.8065]
[1727147123955,3.80526,2628.0,2627.5,0.8065]
[1727147124157,3.80532,2627.9,2627.5,0.8065]
[1727147127199,3.80532,2627.9,2627.5,1.88558429]
[1727147127702,3.80526,2628.0,2627.5,1.88558429]
[1727147127703,3.80546,2627.8,2627.5,1.88558429]
[1727147129087,7.61103,2627.8,2627.5,1.88558429]
[1727147129349,3.80546,2627.8,2627.5,0.8065]
[1727147129651,3.80575,2627.6,2627.5,0.8065]
[1727147130951,3.80593,2627.5,2627.1,0.8065]
[1727147131433,3.80605,2627.4,2627.1,0.8065]
[1727147132010,0.08979308,2627.3,2627.1,0.8065]
[1727147132435,7.61193,2627.5,2627.1,0.8065]
[1727147132659,3.80593,2627.5,2627.1,0.8065]
[1727147132937,0.08947965,2627.4,2627.1,0.8065]
[1727147133436,0.08947965,2627.4,2627.1,1.61303425]
[1727147134451,0.08947965,2627.4,2627.1,3.08041084]
[1727147138055,0.08947965,2627.4,2627.1,1.61303425]
[1727147141758,3.89555965,2627.4,2627.1,1.61303425]
[1727147142853,0.08947965,2627.4,2627.1,1.61303425]
[1727147145151,3.89551965,2627.4,2627.1,0.8065]
[1727147145591,3.89551965,2627.4,2626.9,0.791]
[1727147145883,3.80633,2627.2,2626.9,3.791]
[1727147146093,0.08929553,2627.1,2626.9,3.791]
[1727147146249,3.80609,2627.4,2627.0,0.6291]
[1727147146447,0.08929056,2627.3,2626.9,3.791]
[1727147147151,1.99137243,2627.8,2626.9,3.791]
[1727147147152,1.99137243,2628.0,2627.7,0.791]
[1727147147409,0.03043538,2628.2,2627.8,0.791]
[1727147147621,0.03043538,2628.2,2627.9,3.80518]
[1727147147919,0.03043538,2628.2,2628.0,0.791]
[1727147148115,0.03043538,2628.2,2628.0,4.59617]
[1727147149727,0.03043538,2628.2,2628.0,4.59608]
[1727147150174,0.03043538,2628.2,2628.0,0.791]
[1727147150375,0.03043538,2628.2,2628.1,3.80503]
[1727147151118,0.03043538,2628.2,2628.0,0.791]
[1727147154724,0.07350213,2628.1,2628.0,0.791]
[1727147154931,0.07350213,2628.1,2627.8,3.0]
[1727147154932,0.07350213,2628.1,2627.8,0.791]
[1727147155132,3.87864213,2628.1,2627.6,0.791]
[1727147155312,1.6685659,2628.1,2627.6,0.791]
[1727147155617,5.4736059,2628.1,2627.6,4.59672]
[1727147155820,5.4736059,2628.1,2627.6,0.791]
[1727147156030,5.4736059,2628.1,2627.6,4.59675]
[1727147156383,1.59506377,2628.0,2627.6,4.59675]
[1727147156608,5.4736059,2628.1,2627.6,4.59675]
[1727147156922,1.6685659,2628.0,2627.6,4.59675]
[1727147157791,0.07350213,2628.0,2627.6,4.59675]
[1727147158122,0.07350213,2628.0,2627.6,0.791]
[1727147158319,5.4737759,2628.0,2627.6,0.791]
[1727147160246,3.80532,2627.9,2627.6,0.791]
[1727147160884,0.07350213,2627.8,2627.6,0.791]
[1727147161029,0.07350213,2627.8,2627.3,0.07610856]
[1727147161030,3.8056,2627.7,2627.3,0.7845]
[1727147161662,0.0737814,2627.6,2627.3,0.7845]
[1727147162369,5.80018303,2627.9,2627.3,0.7845]
[1727147162370,1.59506377,2627.9,2627.5,0.7845]
[1727147162689,5.40026377,2628.0,2627.5,0.7845]
[1727147164385,3.8054,2627.9,2627.5,0.7845]
[1727147164585,5.40046377,2627.9,2627.5,0.7845]
[1727147164937,3.8054,2627.9,2627.5,0.7845]
[1727147165198,9.20590377,2627.9,2627.5,0.7845]
[1727147165342,5.40046377,2627.9,2627.5,0.7845]
[1727147165536,9.20590377,2627.9,2627.5,0.7845]
[1727147165879,5.40046377,2627.9,2627.5,0.7845]
[1727147166084,3.8054,2627.9,2627.5,0.7845]
[1727147166264,5.40046377,2627.9,2627.5,0.7845]
[1727147166854,3.8054,2627.9,2627.5,0.7845]
[1727147167054,5.40046377,2627.9,2627.5,0.7845]
[1727147168472,3.80643,2627.2,2626.8,2.5]
[1727147168635,0.7866,2627.5,2626.8,2.5]
[1727147168636,3.80674,2627.0,2626.8,2.5]
[1727147168841,3.80676,2626.9,2626.8,2.5]
[1727147169291,5.40306895,2627.0,2626.8,2.5]
[1727147169495,5.40305895,2627.0,2626.8,2.5]
[1727147169703,5.40304895,2627.0,2626.8,2.5]
[1727147170001,3.80676,2626.9,2626.8,2.5]
[1727147170857,3.80672,2627.0,2626.8,2.5]
[1727147171170,5.40304895,2627.0,2626.8,2.5]
[1727147171373,3.80676,2626.9,2626.8,2.5]
[1727147171751,3.880696,2626.9,2626.8,2.5]
[1727147172090,0.073936,2626.9,2626.8,2.5]
[1727147172382,3.80671,2627.0,2626.8,2.5]
[1727147172586,0.073936,2626.9,2626.8,2.5]
[1727147173587,3.880696,2626.9,2626.8,2.5]
[1727147177132,3.80698,2626.8,2626.5,0.8045]
[1727147177330,0.0731729,2626.7,2626.5,0.8045]
[1727147177481,3.80507723,2626.8,2626.5,0.8045]
[1727147177687,0.0731729,2626.7,2626.5,0.8045]
[1727147177887,3.80507723,2626.8,2626.5,0.8045]
[1727147178089,0.0731729,2626.7,2626.5,0.8045]
[1727147178328,3.80676,2626.9,2626.5,0.8045]
[1727147178329,7.61362,2626.9,2626.5,0.8045]
[1727147178531,3.80713,2626.7,2626.5,0.8045]
[1727147178744,3.80713,2626.7,2625.9,3.80815]
[1727147178745,3.8072,2626.6,2626.0,3.8045]
[1727147179035,3.8805329,2626.5,2626.0,3.8045]
[1727147179245,3.8805329,2626.5,2626.1,0.761263]
[1727147179465,3.8805329,2626.5,2625.8,3.00760992]
[1727147179466,3.17737662,2626.4,2625.8,0.81210992]
[1727147179613,3.17737662,2626.4,2625.8,0.00760992]
[1727147179614,3.80821,2625.9,2625.8,0.00760992]
[1727147180010,3.88120326,2625.9,2625.8,0.00760992]
[1727147184368,0.07299326,2625.9,2625.8,0.00760992]
[1727147184522,3.80763,2626.3,2625.8,1.27749526]
[1727147184728,0.07215471,2626.2,2625.8,1.27749526]
[1727147184931,3.80763,2626.3,2625.8,1.27749526]
[1727147185133,0.07215471,2626.2,2625.8,1.27749526]
[1727147185388,3.80763,2626.3,2625.8,1.27749526]
[1727147185561,0.07215471,2626.1,2625.9,0.50859953]
[1727147185959,3.80763,2626.3,2625.9,0.50859953]
[1727147186133,0.07221961,2626.2,2625.9,0.50859953]
[1727147186322,3.80763,2626.3,2625.9,0.50859953]
[1727147186522,0.07221961,2626.2,2625.9,0.50859953]
[1727147186723,3.80763,2626.3,2625.8,0.81210992]
[1727147186916,0.07221961,2626.2,2625.8,0.81210992]
[1727147187448,3.80806,2626.1,2625.8,0.81210992]
[1727147187757,0.07221961,2626.0,2625.8,0.81210992]
[1727147189504,3.88028961,2626.0,2625.8,0.81210992]
[1727147190353,3.80821,2625.9,2625.8,0.00760992]
[1727147190653,3.88039966,2625.9,2625.8,0.00760992]
[1727147193894,4.63709966,2625.9,2625.8,0.00760992]
[1727147195902,5.18709966,2625.9,2625.8,0.00760992]
[1727147197499,8.18709966,2625.9,2625.8,0.00760992]
[1727147199781,8.18709966,2625.9,2625.8,0.00664274]
[1727147212027,8.58496314,2625.9,2625.8,0.00664274]
[1727147213250,10.18129209,2625.9,2625.8,0.00664274]
[1727147213746,10.18129209,2625.9,2625.0,0.0380453]
[1727147213747,8.15557,2625.1,2625.0,0.0380453]
[1727147214040,11.40418226,2625.1,2625.0,0.0380453]
[1727147221973,7.43060564,2625.1,2625.0,0.0380453]
[1727147224983,3.88060564,2625.1,2625.0,0.0380453]
[1727147232268,5.47028768,2625.1,2625.0,0.0380453]
[1727147233808,8.43738226,2625.1,2625.0,0.0380453]
[1727147234245,10.82847531,2625.1,2625.0,0.0380453]
[1727147234497,13.82847531,2625.1,2625.0,0.0380453]
[1727147235278,13.83158643,2625.1,2625.0,0.0380453]
[1727147235552,11.43738226,2625.1,2625.0,0.0380453]
[1727147236689,14.22699082,2625.1,2625.0,0.0380453]
[1727147239252,14.23417837,2625.1,2625.0,0.0380453]
[1727147240267,11.43738226,2625.1,2625.0,0.0380453]
[1727147241083,15.13826922,2625.1,2625.0,0.0380453]
[1727147241400,15.13946915,2625.1,2625.0,0.0380453]
[1727147242430,11.76835381,2625.1,2625.0,0.0380453]
[1727147243399,11.76835381,2625.1,2624.2,0.0380453]
[1727147243400,0.7632,2624.9,2624.2,0.0380453]
[1727147243601,9.9357432,2624.3,2624.2,0.0380453]
[1727147243919,4.36053,2624.3,2624.2,0.0380453]
[1727147244093,6.82860026,2624.3,2624.2,0.0380453]
[1727147245641,5.87800839,2624.3,2624.2,0.8358453]
[1727147245944,3.88089593,2624.3,2624.2,0.8358453]
[1727147246124,5.47840274,2624.3,2624.2,0.8358453]
[1727147246445,7.05827255,2624.3,2624.2,0.0380453]
[1727147246605,9.45597688,2624.3,2624.2,0.0380453]
[1727147246945,10.00597688,2624.3,2624.2,0.0380453]
[1727147247540,10.60827255,2624.3,2624.2,0.0380453]
[1727147248442,11.37147255,2624.3,2624.2,0.0380453]
[1727147249755,14.16301698,2624.3,2624.2,0.0380453]
[1727147250060,11.37147255,2624.3,2624.2,0.0380453]
[1727147250951,13.00082659,2624.3,2624.2,0.0380453]
[1727147251120,13.0009001,2624.3,2624.2,0.0380453]
[1727147252158,10.60827255,2624.3,2624.2,0.0380453]
[1727147252361,13.00045568,2624.3,2624.2,0.0380453]
[1727147253350,13.00127912,2624.3,2624.2,0.0380453]
[1727147253660,13.00149767,2624.3,2624.2,0.0380453]
[1727147254951,13.0013787,2624.3,2624.2,0.0380453]
[1727147257136,10.60827255,2624.3,2624.2,0.0380453]
[1727147257539,7.43089593,2624.3,2624.2,0.0380453]
[1727147259489,3.88089593,2624.3,2624.2,0.8324453]
[1727147260537,6.42529593,2624.3,2624.2,0.8324453]
[1727147261143,4.43089593,2624.3,2624.2,0.8324453]
[1727147261643,0.07036593,2624.3,2624.2,0.8324453]
[1727147261853,3.88089593,2624.3,2624.2,0.8324453]
[1727147263566,6.02639788,2624.3,2624.2,0.0380453]
[1727147263775,12.60267255,2624.3,2624.2,0.0380453]
[1727147264080,10.60827255,2624.3,2624.2,0.0380453]
[1727147264243,13.82040787,2624.3,2624.2,0.0380453]
[1727147264446,11.42727255,2624.3,2624.2,0.0380453]
[1727147264682,12.89065246,2624.3,2624.2,0.0380453]
[1727147264988,12.89063517,2624.3,2624.2,0.0380453]
[1727147266246,10.49702335,2624.3,2624.2,0.0380453]
[1727147266473,10.89363287,2624.3,2624.2,0.0380453]
[1727147275433,13.68561255,2624.3,2624.2,0.0380453]
[1727147277748,13.68789338,2624.3,2624.2,0.0380453]
[1727147278614,10.89363287,2624.3,2624.2,0.0380453]
[1727147280464,7.71625625,2624.3,2624.2,0.0380453]
[1727147280661,11.9851075,2624.3,2624.2,0.0380453]
[1727147280825,11.58849798,2624.3,2624.2,0.0380453]
[1727147281230,11.58839138,2624.3,2624.2,0.0380453]
[1727147281660,8.79176499,2624.3,2624.2,0.0380453]
[1727147284781,6.50064673,2624.3,2624.2,0.0380453]
[1727147285076,10.77194581,2624.3,2624.2,0.0380453]
[1727147285261,7.97276499,2624.3,2624.2,0.0380453]
[1727147286275,11.2801678,2624.3,2624.2,0.0380453]
[1727147286775,7.97276499,2624.3,2624.2,0.0380453]
[1727147288678,11.2801678,2624.3,2624.2,0.0380453]
[1727147290779,11.28075964,2624.3,2624.2,0.0380453]
[1727147291184,12.06075964,2624.3,2624.2,0.0380453]
[1727147291480,8.75276499,2624.3,2624.2,0.0380453]
[1727147297179,7.97276499,2624.3,2624.2,0.0380453]
[1727147298879,8.73956499,2624.3,2624.2,0.0380453]
[1727147309266,5.95064673,2624.3,2624.2,0.0380453]
[1727147309462,2.95064673,2624.3,2624.2,0.8118453]
[1727147310673,2.95064673,2624.3,2624.2,1.3118453]
[1727147310994,3.50064673,2624.3,2624.2,1.3118453]
[1727147311875,4.97276499,2624.3,2624.2,0.5380453]
[1727147314798,4.97276499,2624.3,2624.2,1.0380453]
[1727147318802,3.50064673,2624.3,2624.2,1.0380453]
[1727147318966,3.50064673,2624.3,2624.2,1.5380453]
[1727147322908,3.50064673,2624.3,2624.2,2.0380453]
[1727147324923,4.97276499,2624.3,2624.2,2.0380453]
[1727147326519,2.87181832,2624.3,2624.2,3.12952983]
[1727147326822,1.67130048,2624.3,2624.2,4.60164809]
[1727147326987,1.67130048,2624.3,2624.2,5.10164809]
[1727147327313,0.0697508,2624.3,2624.2,5.10164809]
[1727147327672,6.21214549,2624.8,2624.2,5.10164809]
[1727147327877,0.05657492,2624.7,2624.5,0.8103]
[1727147328087,3.80986,2624.8,2624.5,0.8103]
[1727147328291,0.05657492,2624.7,2624.5,0.8103]
[1727147328493,3.80986,2624.8,2624.5,0.8103]
[1727147328836,0.05657492,2624.7,2624.5,0.8103]
[1727147329179,3.80986,2624.8,2624.5,0.8103]
[1727147329797,0.05657492,2624.7,2624.5,0.8103]
[1727147330113,3.81005,2624.7,2624.5,0.8103]
[1727147330298,0.05657492,2624.6,2624.5,0.8103]
[1727147331777,3.8099,2624.8,2624.5,0.8103]
[1727147331973,0.05657492,2624.6,2624.5,0.8103]
[1727147332192,3.8099,2624.8,2624.5,0.8103]
[1727147332388,0.05657492,2624.6,2624.5,0.8103]
[1727147332891,7.61985,2624.8,2624.5,0.8103]
[1727147333095,3.86653492,2624.7,2624.5,0.8103]
[1727147335298,0.05657492,2624.7,2624.5,0.8103]
[1727147335626,3.8101,2624.6,2624.5,0.8103]
[1727147335837,3.86667492,2624.6,2624.5,0.8103]
[1727147339755,0.05657492,2624.6,2624.2,3.3124453]
[1727147340028,5.95614405,2624.3,2624.2,2.5380453]
[1727147340470,6.35504756,2624.3,2624.2,2.5380453]
[1727147340732,6.41224352,2624.3,2624.2,2.5380453]
[1727147341232,6.41214362,2624.3,2624.2,2.5380453]
[1727147344927,4.41772596,2624.3,2624.2,2.5380453]
[1727147347410,6.81080977,2624.3,2624.2,2.5380453]
[1727147348622,9.81080977,2624.3,2624.2,2.5380453]
[1727147349269,7.41772596,2624.3,2624.2,2.5380453]
[1727147351262,10.21049285,2624.3,2624.2,2.5380453]
[1727147351964,7.41772596,2624.3,2624.2,2.5380453]
[1727147353119,10.21049285,2624.3,2624.2,2.5380453]
[1727147353825,7.41772596,2624.3,2624.2,2.5380453]
[1727147359478,9.81007028,2624.3,2624.2,2.5380453]
[1727147360274,7.41772596,2624.3,2624.2,2.5380453]
[1727147360471,8.88949776,2624.3,2624.2,2.5380453]
[1727147361563,11.68052909,2624.3,2624.2,2.5380453]
[1727147361765,12.43472909,2624.3,2624.2,2.5380453]
[1727147362242,9.64369776,2624.3,2624.2,2.5380453]
[1727147362441,10.039883,2624.3,2624.2,2.5380453]
[1727147364495,11.75808482,2624.3,2624.2,2.5380453]
[1727147367400,14.54658285,2624.3,2624.2,2.5380453]
[1727147369087,11.75808482,2624.3,2624.2,2.5380453]
[1727147369773,14.54619084,2624.3,2624.2,2.5380453]
[1727147369965,11.75808482,2624.3,2624.2,2.5380453]
[1727147370503,14.5462765,2624.3,2624.2,2.5380453]
[1727147371301,14.54619298,2624.3,2624.2,2.5380453]
[1727147371503,14.54600739,2624.3,2624.2,2.5380453]
[1727147371901,6.65399534,2624.3,2624.2,3.3236453]
[1727147372098,3.86772596,2624.3,2624.2,3.3236453]
[1727147373079,5.85952262,2624.3,2624.2,3.3236453]
[1727147373502,5.85986915,2624.3,2624.2,3.3236453]
[1727147373722,5.85986915,2624.3,2624.2,3.65600983]
[1727147374532,5.85980655,2624.3,2624.2,3.65600983]
[1727147374732,5.86009551,2624.3,2624.2,3.65600983]
[1727147375489,3.86772596,2624.3,2624.2,3.65600983]
[1727147376034,5.86012213,2624.3,2624.2,3.65600983]
[1727147376432,5.86054152,2624.3,2624.2,3.65600983]
[1727147376792,5.46207077,2624.3,2624.2,3.65600983]
[1727147377118,5.462079,2624.3,2624.2,1.15600983]
[1727147377434,5.462079,2624.3,2624.2,1.3236453]
[1727147378397,3.86772596,2624.3,2624.2,1.3236453]
[1727147379732,4.41772596,2624.3,2624.2,0.5380453]
[1727147381142,3.86772596,2624.3,2624.2,1.3236453]
[1727147381328,3.86772596,2624.3,2624.2,1.8236453]
[1727147385541,3.86772596,2624.3,2624.2,2.3236453]
[1727147385701,3.86772596,2624.3,2624.2,2.55600983]
[1727147388239,6.26232709,2624.3,2624.2,2.55600983]
[1727147388416,6.26232709,2624.3,2624.2,2.3236453]
[1727147389358,6.26439053,2624.3,2624.2,2.3236453]
[1727147389517,6.26439053,2624.3,2624.2,2.8236453]
[1727147389717,6.26439053,2624.3,2624.2,2.0380453]
[1727147393624,6.26439053,2624.3,2624.2,2.5380453]
[1727147394053,6.26412811,2624.3,2624.2,2.5380453]
[1727147394530,6.81412811,2624.3,2624.2,2.5380453]
[1727147399048,6.81403819,2624.3,2624.2,2.5380453]
[1727147400711,6.81415931,2624.3,2624.2,2.5380453]
[1727147400863,6.26415931,2624.3,2624.2,2.5380453]
[1727147401504,3.86772596,2624.3,2624.2,2.5380453]
[1727147402285,3.86772596,2624.3,2624.2,3.63618983]
[1727147403269,5.86455222,2624.3,2624.2,3.63618983]
[1727147403902,3.86772596,2624.3,2624.2,3.63618983]
[1727147404203,5.8645045,2624.3,2624.2,3.63618983]
[1727147404392,3.86772596,2624.3,2624.2,3.63618983]
[1727147404801,5.86440749,2624.3,2624.2,3.63618983]
[1727147406292,3.86772596,2624.3,2624.2,3.3051453]
[1727147406609,5.86385094,2624.3,2624.2,3.3051453]
[1727147407284,5.86398688,2624.3,2624.2,3.3051453]
[1727147411107,3.86772596,2624.3,2624.2,3.3051453]
[1727147412901,3.86772596,2624.3,2624.2,2.5380453]
[1727147413208,6.26368191,2624.3,2624.2,2.5380453]
[1727147413811,6.26412378,2624.3,2624.2,2.5380453]
[1727147414502,6.26440767,2624.3,2624.2,2.5380453]
[1727147415388,3.86772596,2624.3,2624.2,2.5380453]
[1727147417775,6.66635971,2624.3,2624.2,2.5380453]
[1727147419218,3.86772596,2624.3,2624.2,2.5380453]
[1727147419416,6.66635971,2624.3,2624.2,2.5380453]
[1727147421703,6.66865673,2624.3,2624.2,2.5380453]
[1727147421904,3.86772596,2624.3,2624.2,2.5380453]
[1727147422120,6.66875835,2624.3,2624.2,2.5380453]
[1727147422818,3.86772596,2624.3,2624.2,2.5380453]
[1727147423121,8.22922596,2624.3,2624.2,2.5380453]
[1727147423325,12.1946482,2624.3,2624.2,2.5380453]
[1727147423697,8.22922596,2624.3,2624.2,2.5380453]
[1727147428085,11.53400398,2624.3,2624.2,2.5380453]
[1727147428314,11.53504285,2624.3,2624.2,2.5380453]
[1727147428500,6.66625061,2624.3,2624.2,3.3482453]
[1727147428700,3.86772596,2624.3,2624.2,3.3482453]
[1727147429434,6.26657713,2624.3,2624.2,3.3482453]
[1727147429731,6.26657713,2624.3,2624.2,3.68306983]
[1727147429959,6.26657713,2624.3,2624.2,3.3482453]
[1727147429960,3.86772596,2624.3,2624.2,3.3482453]
[1727147430322,3.86772596,2624.3,2624.2,2.5380453]
[1727147432158,3.89771961,2624.3,2624.2,2.5380453]
[1727147433658,6.29627337,2624.3,2624.2,3.3447453]
[1727147433863,6.29627337,2624.3,2624.2,3.67921983]
[1727147434068,3.89771961,2624.3,2624.2,3.67921983]
[1727147434973,0.08718961,2624.3,2624.2,3.67921983]
[1727147435142,0.08718961,2624.3,2624.2,5.2267924]
[1727147435143,1.6861789,2624.3,2624.2,5.2267924]
[1727147435322,1.6861789,2624.3,2624.2,5.15059098]
[1727147435323,1.6861804,2624.3,2624.2,5.15059098]
[1727147435528,0.08718961,2624.3,2624.2,5.22679483]
[1727147435758,0.08718961,2624.3,2624.2,9.03747483]
[1727147435940,1.59899079,2624.6,2624.3,0.8067]
[1727147436137,3.80941,2625.1,2624.6,0.8067]
[1727147436138,1.59899079,2624.8,2624.6,0.8067]
[1727147436336,1.59899079,2624.9,2624.6,0.8067]
[1727147436537,1.59899079,2624.9,2624.7,2.27807115]
[1727147436865,1.59899079,2624.9,2624.8,0.8067]
[1727147437067,1.59899079,2625.0,2624.8,0.8067]
[1727147437362,1.59899079,2625.0,2624.7,1.47137115]
[1727147437363,1.59899079,2625.0,2624.9,1.03450711]
[1727147438365,1.59899079,2625.1,2624.9,1.03450711]
[1727147438664,1.59899079,2625.1,2624.9,0.8067]
[1727147440325,1.59899079,2625.2,2624.9,0.8067]
[1727147441867,5.40813079,2625.3,2625.0,0.07618126]
[1727147442032,1.59899079,2625.2,2625.0,0.07618126]
[1727147442445,5.40813079,2625.3,2625.0,0.07618126]
[1727147443242,1.59899079,2625.2,2625.0,0.07618126]
[1727147443456,0.07908526,2625.1,2624.9,0.88288127]
[1727147443653,5.40813079,2625.3,2624.9,0.88288127]
[1727147443863,3.88835526,2625.2,2624.9,0.88288127]
[1727147444175,3.88835526,2625.2,2624.9,1.27598313]
[1727147444176,3.80942,2625.1,2624.9,1.27598313]
[1727147444335,3.80942,2625.1,2624.9,0.8067]
[1727147444966,0.07908526,2625.0,2624.9,0.8067]
[1727147446370,3.88860526,2625.0,2624.9,0.8067]
[1727147450335,3.88860526,2625.0,2624.5,0.8162]
[1727147450336,3.8099,2624.8,2624.5,0.8162]
[1727147450739,0.07905019,2624.7,2624.5,0.8162]
[1727147451279,0.07905019,2624.6,2624.5,0.8162]
[1727147451682,3.88915019,2624.6,2624.5,0.8162]
[1727147455374,0.07905019,2624.6,2624.5,0.8162]
[1727147455752,3.80975,2624.9,2624.5,0.8162]
[1727147455952,0.07905019,2624.6,2624.5,0.8162]
[1727147456188,3.80975,2624.9,2624.5,0.8162]
[1727147456489,3.80997,2624.7,2624.5,0.8162]
[1727147456680,0.07905019,2624.6,2624.5,0.8162]
[1727147458591,0.07905019,2624.6,2624.5,1.13399352]
[1727147460369,3.88915019,2624.6,2624.5,1.13399352]
[1727147460689,0.07905019,2624.6,2624.5,0.8162]
[1727147461583,3.80973,2624.9,2624.5,0.8162]
[1727147461801,0.07919558,2624.6,2624.5,0.8162]
[1727147462095,0.07919558,2624.6,2624.5,4.62644]
[1727147462268,3.80953,2625.0,2624.5,1.97223685]
[1727147462453,3.88887558,2624.9,2624.5,1.97223685]
[1727147463090,3.88887558,2624.9,2624.5,1.89604653]
[1727147464075,0.07919558,2624.9,2624.5,5.70627653]
[1727147464309,5.40814079,2625.3,2624.7,0.821]
[1727147464468,3.80932,2625.2,2624.8,0.47072697]
[1727147464665,3.80932,2625.2,2624.8,0.54691043]
[1727147465302,1.59899079,2625.5,2625.1,1.4704786]
[1727147465599,3.80866,2625.6,2625.2,0.89717082]
[1727147466265,3.80859,2625.7,2625.2,0.89717082]
[1727147466606,3.80868,2625.6,2625.2,0.89717082]
[1727147466802,3.80868,2625.6,2625.3,0.23676494]
[1727147467096,3.80868,2625.6,2625.2,0.89717082]
[1727147467346,3.80894,2625.4,2625.2,0.821]
[1727147467510,3.80891,2625.5,2625.2,0.821]
[1727147468095,3.80897,2625.4,2625.2,0.821]
[1727147468599,3.80891,2625.5,2625.2,0.821]
[1727147469075,7.61783,2625.5,2625.2,0.821]
[1727147469276,3.80891,2625.5,2625.2,0.821]
[1727147469816,3.80865,2625.6,2625.2,0.821]
[1727147469980,3.80865,2625.6,2625.3,0.07617207]
[1727147470399,5.40757079,2625.7,2625.3,0.07617207]
[1727147470575,5.40757079,2625.7,2625.4,0.821]
[1727147470576,3.80858,2625.7,2625.4,0.821]
[1727147470777,3.80839,2625.8,2625.4,0.821]
[1727147471117,3.80839,2625.8,2625.4,0.89716583]
[1727147471731,0.07984711,2625.7,2625.4,0.89716583]
[1727147472025,3.80839,2625.8,2625.4,0.89716583]
[1727147472321,3.80839,2625.8,2625.2,0.07616582]
[1727147472322,3.80878,2625.6,2625.2,0.07616582]
[1727147472526,3.80878,2625.6,2625.2,0.47066458]
[1727147472829,0.0799423,2625.5,2625.2,0.47066458]
[1727147475295,3.8887523,2625.5,2625.2,0.47066458]
[1727147475497,3.8887523,2625.5,2625.1,0.821]
[1727147475698,0.0799423,2625.5,2625.1,0.8971728]
[1727147476417,3.8887623,2625.5,2625.1,0.821]
[1727147478331,5.48775309,2625.5,2625.1,0.821]
[1727147478907,3.80898,2625.4,2625.1,0.821]
[1727147479256,5.487868,2625.4,2625.1,0.821]
[1727147480722,9.296898,2625.4,2625.1,0.821]
[1727147480928,3.80909,2625.3,2625.1,0.821]
[1727147481329,0.07989721,2625.2,2625.1,0.821]
[1727147481650,5.40808079,2625.3,2625.1,0.821]
[1727147481651,1.59899079,2625.3,2625.1,0.821]
[1727147481817,0.07989721,2625.2,2625.1,0.821]
[1727147482146,5.40797079,2625.4,2625.1,0.821]
[1727147482449,0.07989721,2625.2,2625.1,0.821]
[1727147482952,5.40797079,2625.4,2625.1,0.821]
[1727147483161,0.07989721,2625.2,2625.1,0.821]
[1727147483453,1.59899079,2625.3,2625.1,0.821]
[1727147483655,0.07989721,2625.2,2625.1,0.821]
[1727147483952,1.59899079,2625.3,2625.1,0.821]
[1727147484153,1.59899079,2625.3,2624.8,6.88597645]
[1727147484154,0.07988721,2625.2,2624.9,0.7996]
[1727147484357,1.59899079,2625.3,2625.0,0.76855765]
[1727147484563,0.07988721,2625.1,2625.0,0.76855765]
[1727147484715,1.59899079,2625.3,2625.0,0.76855765]
[1727147484915,1.59899079,2625.3,2624.9,0.7996]
[1727147484916,0.07988721,2625.1,2624.9,0.7996]
[1727147485215,3.80926,2625.2,2624.9,0.7996]
[1727147485414,0.07988721,2625.0,2624.9,0.7996]
[1727147485618,3.80926,2625.2,2624.9,0.7996]
[1727147486141,0.07988721,2625.1,2624.9,0.7996]
[1727147486493,1.59899079,2625.3,2624.9,0.7996]
[1727147486494,5.40810079,2625.3,2625.0,0.46375738]
[1727147487041,5.40810079,2625.3,2625.0,0.38757792]
[1727147489178,3.80946,2625.1,2624.6,0.8075]
[1727147489545,5.40845079,2625.1,2624.6,0.8075]
[1727147489748,3.8096,2625.0,2624.6,0.8075]
[1727147490321,5.40859079,2625.0,2624.6,0.8075]
[1727147490524,6.21635079,2625.1,2624.7,0.461766]
[1727147491022,5.40845079,2625.1,2624.7,0.461766]
[1727147491740,1.59899079,2625.1,2624.9,0.8075]
[1727147493031,1.59899079,2625.1,2625.0,3.88570129]
[1727147493327,1.67870764,2625.1,2625.0,4.69320129]
[1727147493526,1.67870764,2625.1,2625.0,5.86196009]
[1727147493747,0.07971685,2625.1,2625.0,5.86196009]
[1727147493947,7.61741,2625.6,2625.0,5.86196009]
[1727147494108,0.07971685,2625.1,2625.0,5.86196009]
[1727147494308,3.80867,2625.6,2625.0,5.86196009]
[1727147494527,3.80867,2625.6,2625.1,0.73317262]
[1727147494700,7.61741,2625.6,2625.2,0.07617215]
[1727147495440,3.80867,2625.6,2625.1,0.80934477]
[1727147495632,3.80885,2625.5,2625.1,0.80934477]
[1727147496142,3.80885,2625.5,2625.1,0.73317262]
[1727147496347,3.80885,2625.5,2625.0,0.88367361]
[1727147496846,0.8079,2625.8,2625.0,0.88367361]
[1727147497017,3.80924,2625.2,2624.8,0.8075]
[1727147501246,4.61711,2625.3,2624.8,0.8075]
[1727147501418,3.80932,2625.2,2624.8,0.8836812]
[1727147501622,5.16628338,2625.6,2624.8,1.42384473]
[1727147501827,3.88940729,2625.1,2624.8,0.8075]
[1727147502035,3.80948,2625.1,2624.8,0.8075]